{"text_format":"1","workbook":"xlsx","n_sheets":1,"sheets":["Документ"],"not_rendered":{"charts":0,"images":0,"macros":0,"external_links":0,"defined_names":1,"comments":0,"pivot_tables":0},"unopened":[],"bounds":{"document_bytes":16777216,"sheet_cells":100000,"rows_first":2000,"rows_last":500,"rows_between":2000,"halvings":0,"cell_chars":16384,"cell_head_chars":4096},"cells_cut":0,"cells_raw":0,"read":"whole","date_system":"1900"}

{"sheet":"Документ","index":0,"n_rows":608,"n_cols":8,"rows_kept":608,"cut":false,"hidden":false,"merged":[[4,6,4,7],[2,0,2,7],[4,1,5,1],[1,6,1,7]]}
[]
[null,null,null,null,null,null,"Приложение № 3                                                                                                                                                                                к постановлению                                                                                                                                                                               от    .07.2018г."]
["Ведомственная структура расходов бюджета МО Красноуфимский округ на 2018  год"]
[]
["Наименование главного распорядителя бюджетных средств","Код главного распоря- дителя","Код раздела, подраз- дела","Код целевой статьи ","Код вида расхо- дов","Сумма, в рублях ","Исполнение за                           1 полугодие 2018г."]
[null,null,null,null,null,null,"в рублях","%"]
["Исполнительно-распорядительный орган местного самоуправления - Администрация Муниципального образования Красноуфимский округ","901","0000","0000000000","000",344755736.50999999,122484522.84,{"$f":"G7/F7*100","v":35.527914366247884}]
["ОБЩЕГОСУДАРСТВЕННЫЕ ВОПРОСЫ","901","0100","0000000000","000",90309109.359999999,34679660.219999999,{"$f":"G8/F8*100","v":38.40106548028966}]
["Функционирование высшего должностного лица субъекта Российской Федерации и муниципального образования","901","0102","0000000000","000",2166700,873103.74,40.29647574652698]
["Непрограммные направления  расходов","901","0102","7000000000","000",2166700,873103.74,40.29647574652698]
["Функционирование высшего должностного лица субъекта РФ и муниципального образования","901","0102","7000521000","000",2166700,873103.74,40.29647574652698]
["Расходы на выплаты персоналу государственных (муниципальных) органов","901","0102","7000521000","120",2166700,873103.74,40.29647574652698]
["Функционирование Правительства Российской Федерации, высших исполнительных органов государственной власти субъектов Российской Федерации, местных администраций","901","0104","0000000000","000",32413815.66,13411827.050000001,41.376884445451928]
["Муниципальная программа МО Красноуфимский округ \"Совершенствование муниципального управления в МО Красноуфимский округ до 2020 года\"","901","0104","0800000000","000",32413815.66,13411827.050000001,41.376884445451928]
["Подпрограмма \"Развитие и обеспечение эффективности деятельности администрации Муниципального образования Красноуфимский округ до 2020 года\"","901","0104","0810000000","000",32373315.66,13395827.050000001,41.379224762422744]
["Обеспечение деятельности органов местного самоуправления (центральный аппарат)","901","0104","0810121000","000",12344948.66,5492243.0199999996,44.489800413637361]
["Расходы на выплаты персоналу государственных (муниципальных) органов","901","0104","0810121000","120",11418713,5048069.8099999996,44.208745854283229]
["Иные закупки товаров, работ и услуг для обеспечения государственных (муниципальных) нужд","901","0104","0810121000","240",924235.66,442873.21,47.917779973994946]
["Уплата налогов, сборов и иных платежей","901","0104","0810121000","850",2000,1300,65]
["Обеспечение деятельности территориальных органов местного самоуправления","901","0104","0810221000","000",18320000,7246984.9900000002,39.557778329694329]
["Расходы на выплаты персоналу государственных (муниципальных) органов","901","0104","0810221000","120",17617089,6865454.6600000001,38.97042615837384]
["Иные закупки товаров, работ и услуг для обеспечения государственных (муниципальных) нужд","901","0104","0810221000","240",702711,381530.33,54.294059720141]
["Уплата налогов, сборов и иных платежей","901","0104","0810221000","850",200,0,0]
["Обеспечение деятельности аппарата управления (прочий персонал)","901","0104","081П121000","000",1669367,656599.04000000004,39.332216343080944]
["Расходы на выплаты персоналу государственных (муниципальных) органов","901","0104","081П121000","120",1669367,656599.04000000004,39.332216343080944]
["Обеспечение оплаты труда работников аппарата управления (прочий персонал) в размере не ниже минимального размера оплаты труда в 2018 году","901","0104","081П140600","000",39000,0,0]
["Расходы на выплаты персоналу государственных (муниципальных) органов","901","0104","081П140600","120",39000,0,0]
["Подпрограмма \"Развитие муниципальной службы в Муниципальном образовании Красноуфимский округ до 2020 года\"","901","0104","0830000000","000",40500,16000,39.506172839506171]
["Обеспечение повышения квалификации муниципальных служащих","901","0104","0830121000","000",40500,16000,39.506172839506171]
["Иные закупки товаров, работ и услуг для обеспечения государственных (муниципальных) нужд","901","0104","0830121000","240",40500,16000,39.506172839506171]
["\nСудебная система","901","0105","0000000000","000",12800,2341.65,18.294140625000001]
["Муниципальная программа МО Красноуфимский округ \"Совершенствование муниципального управления в МО Красноуфимский округ до 2020 года\"","901","0105","0800000000","000",12800,2341.65,18.294140625000001]
["Подпрограмма  \"Содействие реализации муниципальных функций, связанных с общегосударственным управлением до 2020  года\"","901","0105","0820000000","000",12800,2341.65,18.294140625000001]
["Расходы на осуществление государственных полномочий по составлению списков кандидатов в присяжные заседатели федеральных судов общей юрисдикции","901","0105","0820251200","000",12800,2341.65,18.294140625000001]
["Иные закупки товаров, работ и услуг для обеспечения государственных (муниципальных) нужд","901","0105","0820251200","240",12800,2341.65,18.294140625000001]
["Резервные фонды","901","0111","0000000000","000",80000,0,0]
["Непрограммные направления  расходов","901","0111","7000000000","000",80000,0,0]
["Резервные фонды местных администраций","901","0111","7000021000","000",80000,0,0]
["Резервные средства","901","0111","7000021000","870",80000,0,0]
["Другие общегосударственные вопросы","901","0113","0000000000","000",55635793.700000003,20392387.780000001,36.653360047238799]
["Муниципальная программа МО Красноуфимский округ \"Совершенствование муниципального управления в МО Красноуфимский округ до 2020 года\"","901","0113","0800000000","000",50772450.090000004,18571822.16,36.578542353341845]
["Подпрограмма  \"Содействие реализации муниципальных функций, связанных с общегосударственным управлением до 2020  года\"","901","0113","0820000000","000",745636,193870.24,26.000654474837585]
["Содержание и ремонт объектов недвижимости, находящихся в муниципальной собственности","901","0113","0820121000","000",174136,75516,43.366104653833787]
["Иные закупки товаров, работ и услуг для обеспечения государственных (муниципальных) нужд","901","0113","0820121000","240",174136,75516,43.366104653833787]
["Прочие выплаты по обязательствам Муниципального образования","901","0113","0820122000","000",465000,75674.899999999994,16.274172043010751]
["Уплата налогов, сборов и иных платежей","901","0113","0820122000","850",465000,75674.899999999994,16.274172043010751]
["Осуществление государственного полномочия по определению перечня должностных лиц, уполномоченных составлять протоколы об админстративных правонарушениях, предусмотренных законом Свердловской области.","901","0113","0820341100","000",100,100,100]
["Иные закупки товаров, работ и услуг для обеспечения государственных (муниципальных) нужд","901","0113","0820341100","240",100,100,100]
["Осуществление государственного полномочия по созданию административных комиссий","901","0113","0820441200","000",106400,42579.34,40.018176691729316]
["Расходы на выплаты персоналу государственных (муниципальных) органов","901","0113","0820441200","120",96525,42579.34,44.112240352240349]
["Иные закупки товаров, работ и услуг для обеспечения государственных (муниципальных) нужд","901","0113","0820441200","240",9875,0,0]
["Подпрограмма \"Обеспечение деятельности по комплектованию, учету, хранению и использованию архивных документов, хранящихся в архивном отделе администрации МО Красноуфимский округ до 2020 года\"","901","0113","0840000000","000",254000,0,0]
["Осуществление государственного полномочия по хранению, комплектованию, учету и использованию архивных документов, находящихся в государственной собственности Свердловской области","901","0113","0840146100","000",254000,0,0]
["Иные закупки товаров, работ и услуг для обеспечения государственных (муниципальных) нужд","901","0113","0840146100","240",254000,0,0]
["Подпрограмма \"Техническое обеспечение реализации муниципальной программы \"Совершенствование муниципального управления в МО Красноуфимский округ до 2020 года\"","901","0113","0860000000","000",49772814.090000004,18377951.920000002,36.923674612347]
["Оказание услуг (выполнение работ) муниципальным учреждением (Центр технического обеспечения)","901","0113","0860120000","000",42035014.090000004,18377951.920000002,43.720579897157833]
["Расходы на выплаты персоналу казенных учреждений","901","0113","0860120000","110",29485191,13368265.720000001,45.338915118440312]
["Иные закупки товаров, работ и услуг для обеспечения государственных (муниципальных) нужд","901","0113","0860120000","240",12283062.09,4865632.2,39.612534434400146]
["Уплата налогов, сборов и иных платежей","901","0113","0860120000","850",266761,122707,45.998852905784574]
["Обеспечение оплаты труда работников МКУ \"Центр технического обеспечения\" в размере не ниже минимального размера оплаты труда в 2018 году","901","0113","0860140600","000",7737800,0,0]
["Расходы на выплаты персоналу казенных учреждений","901","0113","0860140600","110",7737800,0,0]
["Муниципальная программа МО Красноуфимский округ \"Развитие и модернизация жилищно-коммунального хозяйства и дорожного хозяйства, повышение  энергетической эффективности в МО Красноуфимский округ до 2020 года\"","901","0113","0900000000","000",3635019,1775575.62,48.846391724499931]
["Подпрограмма \"Обеспечение реализации муниципальной программы \"Развитие и модернизация жилищно-коммунального хозяйства и дорожного хозяйства, повышение энергетической эффективности в МО Красноуфимский округ до 2020 года\"","901","0113","0980000000","000",3635019,1775575.62,48.846391724499931]
["Содержание отдела ЖКХ","901","0113","098П123000","000",3635019,1775575.62,48.846391724499931]
["Расходы на выплаты персоналу государственных (муниципальных) органов","901","0113","098П123000","120",2881100,1341667.96,46.567906702301201]
["Иные закупки товаров, работ и услуг для обеспечения государственных (муниципальных) нужд","901","0113","098П123000","240",446400,225007.66,50.4049417562724]
["Уплата налогов, сборов и иных платежей","901","0113","098П123000","850",307519,208900,67.93076200169746]
["Муниципальная программа МО Красноуфимский округ \"Социальная поддержка и благополучие населения МО Красноуфимский округ до 2024г года\"","901","0113","1200000000","000",45000,44990,99.977777777777774]
["Подпрограмма \"Организация общественных работ в МО Красноуфимский округ до 2024 года\"","901","0113","1220000000","000",45000,44990,99.977777777777774]
["Временное трудоустройство безработных граждан, испытывающих трудности в поиске работы","901","0113","1220129000","000",45000,44990,99.977777777777774]
["Иные закупки товаров, работ и услуг для обеспечения государственных (муниципальных) нужд","901","0113","1220129000","240",45000,44990,99.977777777777774]
["Непрограммные направления  расходов","901","0113","7000000000","000",1183324.6100000001,0,{"$f":"G72/F72*100","v":0}]
["Исполнение судебных актов по искам к бюджету округа","901","0113","7000029300","000",1183324.6100000001,0,0]
["Исполнение судебных актов","901","0113","7000029300","830",1183324.6100000001,0,0]
["НАЦИОНАЛЬНАЯ ОБОРОНА","901","0200","0000000000","000",1346100,574620.41,42.687795111804469]
["Мобилизационная и вневойсковая подготовка","901","0203","0000000000","000",1346100,574620.41,42.687795111804469]
["Муниципальная программа МО Красноуфимский округ \"Обеспечение безопасности на территории МО Красноуфимский округ до 2020 года\"","901","0203","0700000000","000",1346100,574620.41,42.687795111804469]
["Подпрограмма \"Осуществление переданных полномочий Российской Федерации по осуществлению первичного воинского учета на территориях, где отсутствуют военные комиссариаты\"","901","0203","0770000000","000",1346100,574620.41,42.687795111804469]
["Осуществление первичного воинского учета на территориях. где отсутствуют военные комиссариаты","901","0203","0770151180","000",1346100,574620.41,42.687795111804469]
["Расходы на выплаты персоналу государственных (муниципальных) органов","901","0203","0770151180","120",1145153,517601.19,45.199304372428841]
["Иные закупки товаров, работ и услуг для обеспечения государственных (муниципальных) нужд","901","0203","0770151180","240",200947,57019.22,28.375253176210641]
["НАЦИОНАЛЬНАЯ БЕЗОПАСНОСТЬ И ПРАВООХРАНИТЕЛЬНАЯ ДЕЯТЕЛЬНОСТЬ","901","0300","0000000000","000",6957270,2099864.5,30.182305703242797]
["Защита населения и территории от последствий чрезвычайных ситуаций природного и техногенного характера, гражданская оборона","901","0309","0000000000","000",5285970,1784854.6,33.765885920654107]
["Муниципальная программа МО Красноуфимский округ \"Обеспечение безопасности на территории МО Красноуфимский округ до 2020 года\"","901","0309","0700000000","000",322500,79328.990000000005,24.598136434108529]
["Подпрограмма «Защита населения и территории МО Красноуфимский округ от чрезвычайных ситуаций природного, техногенного и биолого-социального характера, гражданская оборона»","901","0309","0710000000","000",322500,79328.990000000005,24.598136434108529]
["Предупреждение и ликвидация последствий чрезвычайных ситуаций и стихийных бедствий природного, техногенного и биолого-социального характера","901","0309","0710122000","000",322500,79328.990000000005,24.598136434108529]
["Иные закупки товаров, работ и услуг для обеспечения государственных (муниципальных) нужд","901","0309","0710122000","240",322500,79328.990000000005,24.598136434108529]
["Муниципальная программа МО Красноуфимский округ \"Развитие и модернизация жилищно-коммунального хозяйства и дорожного хозяйства, повышение  энергетической эффективности в МО Красноуфимский округ до 2020 года\"","901","0309","0900000000","000",4963470,1705525.61,34.361557740854686]
["Подпрограмма \"Обеспечение реализации муниципальной программы \"Развитие и модернизация жилищно-коммунального хозяйства и дорожного хозяйства, повышение энергетической эффективности в МО Красноуфимский округ до 2020 года\"","901","0309","0980000000","000",4963470,1705525.61,34.361557740854686]
["Содержание отдела ЕДДС","901","0309","0980223000","000",4963470,1705525.61,34.361557740854686]
["Расходы на выплаты персоналу казенных учреждений","901","0309","0980223000","110",4528528.33,1599279.46,35.315655406311656]
["Иные закупки товаров, работ и услуг для обеспечения государственных (муниципальных) нужд","901","0309","0980223000","240",434941.67,106246.15,24.42767785390625]
["Обеспечение пожарной безопасности","901","0310","0000000000","000",1287000,289879.90000000002,22.523690753690754]
["Муниципальная программа МО Красноуфимский округ \"Обеспечение безопасности на территории МО Красноуфимский округ до 2020 года\"","901","0310","0700000000","000",1287000,289879.90000000002,22.523690753690754]
["Подпрограмма \"Обеспечение пожарной безопасности на территории МО Красноуфимский округ\"","901","0310","0720000000","000",1287000,289879.90000000002,22.523690753690754]
["Обеспечение первичных мер пожарной безопасности","901","0310","0720122000","000",667000,284879.90000000002,42.710629685157429]
["Иные закупки товаров, работ и услуг для обеспечения государственных (муниципальных) нужд","901","0310","0720122000","240",662000,284879.90000000002,43.03321752265861]
["Субсидии некоммерческим организациям (за исключением государственных (муниципальных) учреждений)","901","0310","0720122000","630",0,0,{"$error":"#DIV/0!"}]
["Специальные расходы","901","0310","0720122000","880",5000,0,0]
["Восстановление пожарного водоснабжения на территории Муниципального образования Красноуфимский округ","901","0310","0720222000","000",620000,5000,0.80645161290322576]
["Иные закупки товаров, работ и услуг для обеспечения государственных (муниципальных) нужд","901","0310","0720222000","240",620000,5000,0.80645161290322576]
["Другие вопросы в области национальной безопасности и правоохранительной деятельности","901","0314","0000000000","000",384300,25130,6.5391621129326047]
["Муниципальная программа МО Красноуфимский округ \"Обеспечение безопасности на территории МО Красноуфимский округ до 2020 года\"","901","0314","0700000000","000",384300,25130,6.5391621129326047]
["Подпрограмма \"Комплексная профилактика правонарушений на территории МО Красноуфимский округ\"","901","0314","0730000000","000",190000,25130,13.226315789473682]
["Комплексная профилактика правонарушений на территории МО Красноуфимский округ","901","0314","0730122000","000",190000,25130,13.226315789473682]
["Иные закупки товаров, работ и услуг для обеспечения государственных (муниципальных) нужд","901","0314","0730122000","240",105000,0,0]
["Специальные расходы","901","0314","0730122000","880",85000,25130,29.564705882352943]
["Подпрограмма \"Мероприятия по профилактике экстемизма и терроризма, а также минимизации и ликвидации последствий проявления терроризма и эксремизма  на территории МО Красноуфимский округ\"","901","0314","0740000000","000",194300,0,0]
["Мероприятия по профилактике терроризма и экстремизма, а также минимизации и ликвидации последствий проявления терроризма и экстремизма на территории МО Красноуфимский округ","901","0314","0740122000","000",194300,0,0]
["Иные закупки товаров, работ и услуг для обеспечения государственных (муниципальных) нужд","901","0314","0740122000","240",194300,0,0]
["НАЦИОНАЛЬНАЯ ЭКОНОМИКА","901","0400","0000000000","000",43102472.18,6032450.0599999996,13.995601075520488]
["Сельское хозяйство и рыболовство","901","0405","0000000000","000",665200,269037.09000000003,40.444541491280823]
["Муниципальная программа МО Красноуфимский округ \"Создание условий для развития малого и среднего предпринимательства, хозяйствующих субъектов в сфере АПК, коллективного садоводства в МО Красноуфимский округ до 2024 года\"","901","0405","0600000000","000",63000,16000,25.396825396825395]
["Содействие в развитии хозяйствования в сфере АПК","901","0405","0600123000","000",63000,16000,25.396825396825395]
["Иные закупки товаров, работ и услуг для обеспечения государственных (муниципальных) нужд","901","0405","0600123000","240",63000,16000,25.396825396825395]
["Муниципальная программа МО Красноуфимский округ \"Обеспечение безопасности на территории МО Красноуфимский округ до 2020 года\"","901","0405","0700000000","000",602200,253037.09,42.018779475257389]
["Подпрограмма «Защита населения и территории МО Красноуфимский округ от чрезвычайных ситуаций природного, техногенного и биолого-социального характера, гражданская оборона»","901","0405","0710000000","000",602200,253037.09,42.018779475257389]
["Осуществление государственного полномочия Свердловской области по организации проведения мероприятий по отлову и содержанию безнадзорных собак","901","0405","0710142П00","000",602200,253037.09,42.018779475257389]
["Иные закупки товаров, работ и услуг для обеспечения государственных (муниципальных) нужд","901","0405","0710142П00","240",602200,253037.09,42.018779475257389]
["Водное хозяйство","901","0406","0000000000","000",9212945,1458841.12,15.834688256578108]
["Муниципальная программа МО Красноуфимский округ \"Обеспечение безопасности на территории МО Красноуфимский округ до 2020 года\"","901","0406","0700000000","000",9212945,1458841.12,15.834688256578108]
["Подпрограмма \"Обеспечение безопасности на опасных объектах  МО Красноуфимский округ\"","901","0406","0750000000","000",241500,215760,89.341614906832305]
["Страхование гидротехнических сооружений и газопроводов","901","0406","0750122000","000",241500,215760,89.341614906832305]
["Иные закупки товаров, работ и услуг для обеспечения государственных (муниципальных) нужд","901","0406","0750122000","240",241500,215760,89.341614906832305]
["Подпрограмма \"Обеспечение рационального и безопасного природопользования в МО Красноуфимский округ\"","901","0406","0760000000","000",8971445,1243081.1200000001,13.855974372021453]
["Осуществление водохозяйственных мероприятий","901","0406","0760222000","000",2189945,1243081.1200000001,56.763120534990605]
["Иные закупки товаров, работ и услуг для обеспечения государственных (муниципальных) нужд","901","0406","0760222000","240",2179445,1236081.1200000001,56.715407821716077]
["Уплата налогов, сборов и иных платежей","901","0406","0760222000","850",10500,7000,66.666666666666657]
["Капитальный ремонт гидротехнических сооружений, находящихся в собственности МО Красноуфимский округ","901","0406","07602L0160","000",6781500,0,0]
["Иные закупки товаров, работ и услуг для обеспечения государственных (муниципальных) нужд","901","0406","07602L0160","240",6781500,0,0]
["Капитальный ремонт гидротехнических сооружений, находящихся в собственности МО Красноуфимский округ","901","0406","07602R0160","000",0,0,{"$error":"#DIV/0!"}]
["Иные закупки товаров, работ и услуг для обеспечения государственных (муниципальных) нужд","901","0406","07602R0160","240",0,0,{"$error":"#DIV/0!"}]
["Транспорт","901","0408","0000000000","000",1420200,923561.94,65.030414026193498]
["Муниципальная программа МО Красноуфимский округ \"Развитие и модернизация жилищно-коммунального хозяйства и дорожного хозяйства, повышение  энергетической эффективности в МО Красноуфимский округ до 2020 года\"","901","0408","0900000000","000",1420200,923561.94,65.030414026193498]
["Подпрограмма \"Развитие транспорта и транспортной инфраструктуры в МО Красноуфимский округ\"","901","0408","0970000000","000",1420200,923561.94,65.030414026193498]
["Проведение отдельных мероприятий в области автомобильного транспорта","901","0408","0970123000","000",1420200,923561.94,{"$f":"G136/F136*100","v":65.030414026193498}]
["Субсидии юридическим лицам (кроме некоммерческих организаций), индивидуальным предпринимателям, физическим лицам - производителям товаров, работ, услуг","901","0408","0970123000","810",1420200,923561.94,65.030414026193498]
["Дорожное хозяйство (дорожные фонды)","901","0409","0000000000","000",23417199,2883009.91,12.311506213872974]
["Муниципальная программа МО Красноуфимский округ \"Развитие и модернизация жилищно-коммунального хозяйства и дорожного хозяйства, повышение  энергетической эффективности в МО Красноуфимский округ до 2020 года\"","901","0409","0900000000","000",23417199,2883009.91,12.311506213872974]
["Подпрограмма \"Развитие и обеспечение сохранности сети автомобильных дорог местного значения на территории МО Красноуфимский округ\"","901","0409","0950000000","000",23417199,2883009.91,12.311506213872974]
["Разработка проектной документации на объекты строительства и реконструкции автомобильных дорог общего пользования местного значения","901","0409","0950124000","000",2000000,0,0]
["Иные закупки товаров, работ и услуг для обеспечения государственных (муниципальных) нужд","901","0409","0950124000","240",2000000,0,0]
["Содержание автомобильных дорог общего пользования местного значения и искусственных сооружений, расположенных на них","901","0409","0950224000","000",5770000,2878109.91,49.880587694974004]
["Иные закупки товаров, работ и услуг для обеспечения государственных (муниципальных) нужд","901","0409","0950224000","240",5770000,2878109.91,49.880587694974004]
["Ремонт атомобильных дорог общего пользования местного значения и искусственных сооружений, расположенных на них","901","0409","0950324000","000",14927363,0,0]
["Иные закупки товаров, работ и услуг для обеспечения государственных (муниципальных) нужд","901","0409","0950324000","240",14927363,0,0]
["Мероприятия по повышению безопасности дорожного движения на территории МО Красноуфимский округ","901","0409","0950624000","000",719836,4900,0.68071060630476943]
["Иные закупки товаров, работ и услуг для обеспечения государственных (муниципальных) нужд","901","0409","0950624000","240",719836,4900,0.68071060630476943]
["Связь и информатика","901","0410","0000000000","000",81000,9000,11.111111111111111]
["Муниципальная программа МО Красноуфимский округ \"Совершенствование муниципального управления в МО Красноуфимский округ до 2020 года\"","901","0410","0800000000","000",81000,9000,11.111111111111111]
["Подпрограмма \"Информатизация Муниципального образования Красноуфимский округ до 2020 года\"","901","0410","0850000000","000",81000,9000,11.111111111111111]
["Мероприятия по обеспечению предоставления муниципальных услуг в электронном виде","901","0410","0850123000","000",81000,9000,11.111111111111111]
["Иные закупки товаров, работ и услуг для обеспечения государственных (муниципальных) нужд","901","0410","0850123000","240",81000,9000,11.111111111111111]
["Другие вопросы в области национальной экономики","901","0412","0000000000","000",8305928.1799999997,489000,5.8873612846481418]
["Муниципальная программа МО Красноуфимский округ \"Градостроительное планирование территорий МО Красноуфимский округ до 2020 года\"","901","0412","0400000000","000",7743228.1799999997,0,0]
["Разработка документации по планировке территории МО Красноуфимский округ","901","0412","0400123000","000",4581000,0,0]
["Иные закупки товаров, работ и услуг для обеспечения государственных (муниципальных) нужд","901","0412","0400123000","240",4581000,0,0]
["Разработка документации по планировке территории за счет средств областного бюджета","901","0412","0400143600","000",2079000,0,0]
["Иные закупки товаров, работ и услуг для обеспечения государственных (муниципальных) нужд","901","0412","0400143600","240",2079000,0,0]
["Проведение работ по описанию местоположения границ территориальных зон и населенных пунктов, внесение в Единый государственный реестр недвижимости сведений о границах территориальных зон и населенных пунктов","901","0412","0400143800","000",1083228.18,0,0]
["Иные закупки товаров, работ и услуг для обеспечения государственных (муниципальных) нужд","901","0412","0400143800","240",1083228.18,0,0]
["Муниципальная программа МО Красноуфимский округ \"Создание условий для развития малого и среднего предпринимательства, хозяйствующих субъектов в сфере АПК, коллективного садоводства в МО Красноуфимский округ до 2024 года\"","901","0412","0600000000","000",562700,489000,86.90243468988804]
["Создание условий для развития и содействие развитию малого и среднего предпринимательства","901","0412","0600223000","000",191700,163000,85.028690662493474]
["Иные закупки товаров, работ и услуг для обеспечения государственных (муниципальных) нужд","901","0412","0600223000","240",0,0,{"$error":"#DIV/0!"}]
["Субсидии некоммерческим организациям (за исключением государственных (муниципальных) учреждений)","901","0412","0600223000","630",163000,163000,100]
["Субсидии юридическим лицам (кроме некоммерческих организаций), индивидуальным предпринимателям, физическим лицам - производителям товаров, работ, услуг","901","0412","0600223000","810",28700,0,0]
["Развитие системы поддержки малого и среднего предпринимательства на территории Муниципального образования Красноуфимский округ за счет средств областного бюджета","901","0412","0600245270","000",326000,326000,100]
["Субсидии некоммерческим организациям (за исключением государственных (муниципальных) учреждений)","901","0412","0600245270","630",326000,326000,100]
["Инженерное обустройство земель для ведения коллективного садоводства","901","0412","0600323000","000",45000,0,0]
["Субсидии некоммерческим организациям (за исключением государственных (муниципальных) учреждений)","901","0412","0600323000","630",45000,0,0]
["ЖИЛИЩНО-КОММУНАЛЬНОЕ ХОЗЯЙСТВО","901","0500","0000000000","000",81004491.620000005,15936957.369999999,19.67416503860283]
["Жилищное хозяйство","901","0501","0000000000","000",1423800,1093,7.6766399775249322E-2]
["Муниципальная программа МО Красноуфимский округ \"Развитие и модернизация жилищно-коммунального хозяйства и дорожного хозяйства, повышение  энергетической эффективности в МО Красноуфимский округ до 2020 года\"","901","0501","0900000000","000",1423800,1093,7.6766399775249322E-2]
["Подпрограмма \"Повышение  качества условий проживания населения МО Красноуфимский округ\"","901","0501","0920000000","000",1423800,1093,7.6766399775249322E-2]
["Формирование жилищного фонда для переселения граждан из жилых помещений, признанных непригодными для проживания","901","0501","0920123000","000",0,0,{"$error":"#DIV/0!"}]
["Бюджетные инвестиции","901","0501","0920123000","410",0,0,{"$error":"#DIV/0!"}]
["Капитальный ремонт муниципального жилого фонда","901","0501","0920223000","000",1423800,1093,7.6766399775249322E-2]
["Иные закупки товаров, работ и услуг для обеспечения государственных (муниципальных) нужд","901","0501","0920223000","240",1423800,1093,7.6766399775249322E-2]
["Коммунальное хозяйство","901","0502","0000000000","000",63865778.109999999,9847158.8300000001,15.41852165809305]
["Муниципальная программа МО Красноуфимский округ \"Развитие и модернизация жилищно-коммунального хозяйства и дорожного хозяйства, повышение  энергетической эффективности в МО Красноуфимский округ до 2020 года\"","901","0502","0900000000","000",46259027,710699.49,1.5363476840963386]
["Подпрограмма \"Комплексное развитие и модернизация системы коммунальной инфраструктуры МО Красноуфимский округ\"","901","0502","0910000000","000",5750700,0,0]
["Бюджетные инвестиции в объекты жилищно-коммунального хозяйства","901","0502","0910123000","000",3400000,0,0]
["Субсидии юридическим лицам (кроме некоммерческих организаций), индивидуальным предпринимателям, физическим лицам - производителям товаров, работ, услуг","901","0502","0910123000","810",3400000,0,0]
["Разработка проектной документации на объекты строительства и реконструкции коммунальной инфраструктуры","901","0502","0910223000","000",2350700,0,0]
["Иные закупки товаров, работ и услуг для обеспечения государственных (муниципальных) нужд","901","0502","0910223000","240",2350700,0,0]
["Подпрограмма \"Энергосбережение и повышение энергетической эффективности МО Красноуфимский округ\"","901","0502","0930000000","000",40508327,710699.49,1.7544528313894574]
["Модернизация систем и объектов коммунальной инфраструктуры, наружного освещения населенных пунктов","901","0502","0930123000","000",21118118,99699.49,0.47210404828687857]
["Бюджетные инвестиции","901","0502","0930123000","410",21118118,99699.49,0.47210404828687857]
["Модернизация систем и объектов коммунальной инфраструктуры, наружного освещения населенных пунктов за счет средств областного бюджета","901","0502","0930142Б00","000",14047500,0,0]
["Бюджетные инвестиции","901","0502","0930142Б00","410",14047500,0,0]
["Разработка проектной документации","901","0502","0930323000","000",4342709,591000,13.609016860213291]
["Иные закупки товаров, работ и услуг для обеспечения государственных (муниципальных) нужд","901","0502","0930323000","240",4342709,591000,13.609016860213291]
["Экспериза проектной документации сетей уличного освещения","901","0502","0930423000","000",1000000,20000,2]
["Иные закупки товаров, работ и услуг для обеспечения государственных (муниципальных) нужд","901","0502","0930423000","240",1000000,20000,2]
["Муниципальная программа МО Красноуфимский округ \"Устойчивое развитие сельских территорий муниципального образования Красноуфимский округ до 2020 года\"","901","0502","1100000000","000",17606751.109999999,9136459.3399999999,51.891795839669818]
["Подпрограмма \"Развитие газификации МО Красноуфимский округ до 2020 года\"","901","0502","1110000000","000",17606751.109999999,9136459.3399999999,51.891795839669818]
["Разработка схем газоснабжения","901","0502","1110123000","000",363632.74,280639.8,77.176714065955665]
["Иные закупки товаров, работ и услуг для обеспечения государственных (муниципальных) нужд","901","0502","1110123000","240",363632.74,280639.8,77.176714065955665]
["Проектно-изыскательские работы и экспертиза на распределительные газопроводы","901","0502","1110223000","000",3165182.62,861064.16,27.204248960522854]
["Бюджетные инвестиции","901","0502","1110223000","410",3165182.62,861064.16,{"$f":"G200/F200*100","v":27.204248960522854}]
["Строительство распределительных газопроводов","901","0502","1110323000","000",3224908,2577165,79.914372751098639]
["Бюджетные инвестиции","901","0502","1110323000","410",3224908,2577165,79.914372751098639]
["Строительство распределительных газопроводов в рамках государственной программы Свердловской области «Развитие жилищно-коммунального хозяйства и повышение энергетической эффективности в Свердловской области до 2024 года»","901","0502","1110342300","000",10853027.75,5417590.3799999999,49.917778750726953]
["Бюджетные инвестиции","901","0502","1110342300","410",10853027.75,5417590.3799999999,49.917778750726953]
["Благоустройство","901","0503","0000000000","000",15264913.51,5932753.6200000001,38.865294691080109]
["Муниципальная программа МО Красноуфимский округ \"Развитие и модернизация жилищно-коммунального хозяйства и дорожного хозяйства, повышение  энергетической эффективности в МО Красноуфимский округ до 2020 года\"","901","0503","0900000000","000",14382798.51,5709040.2199999997,39.693528460616669]
["Подпрограмма \"Комплексное благоустройство территорий МО Красноуфимский округ\"","901","0503","0940000000","000",14382798.51,5709040.2199999997,39.693528460616669]
["Мероприятия по содержанию сетей наружного освещения населенных пунктов","901","0503","0940123000","000",10355712,4365444.0999999996,42.154939225810836]
["Иные закупки товаров, работ и услуг для обеспечения государственных (муниципальных) нужд","901","0503","0940123000","240",10355712,4365444.0999999996,42.154939225810836]
["Организация и содержание мест захоронений","901","0503","0940223000","000",347490,137609.63,39.601033123255348]
["Иные закупки товаров, работ и услуг для обеспечения государственных (муниципальных) нужд","901","0503","0940223000","240",347490,137609.63,39.601033123255348]
["Прочие мероприятия по благоустройству","901","0503","0940523000","000",3679596.51,1205986.49,32.774965589909208]
["Иные закупки товаров, работ и услуг для обеспечения государственных (муниципальных) нужд","901","0503","0940523000","240",3679596.51,1205986.49,32.774965589909208]
["Муниципальная программа МО Красноуфимский округ \"Формирование современной городской среды на территории Муниципального образования Красноуфимский округ на 2017-2022 годы\"","901","0503","1300000000","000",882115,223713.4,25.361024356234729]
["Разработка проектной документации по благоустройству дворовых и общественных территорий","901","0503","1300123000","000",656900,0,0]
["Иные закупки товаров, работ и услуг для обеспечения государственных (муниципальных) нужд","901","0503","1300123000","240",656900,0,0]
["Бюджетные инвестиции","901","0503","1300123000","410",0,0,{"$error":"#DIV/0!"}]
["Мероприятия по повышению уровня благоустройства дворовых территорий","901","0503","1300223000","000",0,0,{"$error":"#DIV/0!"}]
["Субсидии юридическим лицам (кроме некоммерческих организаций), индивидуальным предпринимателям, физическим лицам - производителям товаров, работ, услуг","901","0503","1300223000","810",0,0,{"$error":"#DIV/0!"}]
["Мероприятия по повышению уровня благоустройства общественных территорий","901","0503","1300323000","000",133200,133200,100]
["Иные закупки товаров, работ и услуг для обеспечения государственных (муниципальных) нужд","901","0503","1300323000","240",133200,133200,100]
["Бюджетные инвестиции","901","0503","1300323000","410",0,0,{"$error":"#DIV/0!"}]
["Проведение голосования по отбору общественных территорий, подлежащих благоустройству, в рамках реализации муниципальной программы \"Формирование современной городской среды на территории Муниципального образования Красноуфимский округ на 2017-2022 годы\"","901","0503","1300340700","000",92015,90513.4,98.368092158887137]
["Иные закупки товаров, работ и услуг для обеспечения государственных (муниципальных) нужд","901","0503","1300340700","240",92015,90513.4,98.368092158887137]
["Другие вопросы в области жилищно-коммунального хозяйства","901","0505","0000000000","000",450000,155951.92000000001,34.655982222222228]
["Муниципальная программа МО Красноуфимский округ \"Развитие и модернизация жилищно-коммунального хозяйства и дорожного хозяйства, повышение  энергетической эффективности в МО Красноуфимский округ до 2020 года\"","901","0505","0900000000","000",450000,155951.92000000001,34.655982222222228]
["Подпрограмма \"Социальная поддержка граждан и осуществление переданных полномочий Российской Федерации и Свердловской области  по предоставлению поддержки отдельным категориям граждан  в МО Красноуфимский округ\"","901","0505","0960000000","000",450000,155951.92000000001,34.655982222222228]
["Компенсация недополученных доходов от услуг бани","901","0505","0960423000","000",450000,155951.92000000001,34.655982222222228]
["Субсидии юридическим лицам (кроме некоммерческих организаций), индивидуальным предпринимателям, физическим лицам - производителям товаров, работ, услуг","901","0505","0960423000","810",450000,155951.92000000001,34.655982222222228]
["Обеспечение деятельности по предоставлению субсидий организациям или ИП, являющимися исполнителями коммунальных услгуг в целях возмещения затрат, связаных с представлением гражданам мер социальной поддержки по частичному освобождению от платы за коммунальные услуги","901","0505","0960542700","000",0,0,{"$error":"#DIV/0!"}]
["Субсидии юридическим лицам (кроме некоммерческих организаций), индивидуальным предпринимателям, физическим лицам - производителям товаров, работ, услуг","901","0505","0960542700","810",0,0,{"$error":"#DIV/0!"}]
["ОХРАНА ОКРУЖАЮЩЕЙ СРЕДЫ","901","0600","0000000000","000",692900,45900,6.6243325155145039]
["Охрана объектов растительного и животного мира и среды их обитания","901","0603","0000000000","000",692900,45900,6.6243325155145039]
["Муниципальная программа МО Красноуфимский округ \"Обеспечение безопасности на территории МО Красноуфимский округ до 2020 года\"","901","0603","0700000000","000",692900,45900,6.6243325155145039]
["Подпрограмма \"Обеспечение рационального и безопасного природопользования в МО Красноуфимский округ\"","901","0603","0760000000","000",692900,45900,6.6243325155145039]
["Охрана окружающей среды в МО Красноуфимский округ","901","0603","0760122000","000",692900,45900,6.6243325155145039]
["Иные закупки товаров, работ и услуг для обеспечения государственных (муниципальных) нужд","901","0603","0760122000","240",692900,45900,6.6243325155145039]
["ОБРАЗОВАНИЕ","901","0700","0000000000","000",1844700,734643.19,39.824534612674142]
["Молодежная политика","901","0707","0000000000","000",1844700,734643.19,39.824534612674142]
["Муниципальная программа МО Красноуфимский округ \"Развитие физической культуры, спорта и формирование здорового образа жизни населения и молодежной политики МО Красноуфимский округ до 2020 года\"","901","0707","0500000000","000",1844700,734643.19,39.824534612674142]
["Подпрограмма \"Развитие потенциала молодежи в МО Красноуфимский округ до 2020 года\"","901","0707","0520000000","000",1424186,442437.51,31.065992082494841]
["Организация деятельности по программе \"Молодежь МО Красноуфимский округ\"","901","0707","0520128000","000",931750,317637.51,34.090422323584654]
["Расходы на выплаты персоналу казенных учреждений","901","0707","0520128000","110",853750,304678.51,35.687087554904835]
["Иные закупки товаров, работ и услуг для обеспечения государственных (муниципальных) нужд","901","0707","0520128000","240",77000,12500,16.233766233766232]
["Уплата налогов, сборов и иных платежей","901","0707","0520128000","850",1000,459,45.9]
["Обеспечение оплаты труда работников МКУ по работе с молодежью \"ЦДПМК\" в размере не ниже минимального размера оплаты труда в 2018 году","901","0707","0520140600","000",156000,0,0]
["Расходы на выплаты персоналу казенных учреждений","901","0707","0520140600","110",156000,0,0]
["Обеспечение мероприятий по укреплению и развитию материально-технической базы учреждения","901","0707","0520228000","000",0,0,{"$error":"#DIV/0!"}]
["Иные закупки товаров, работ и услуг для обеспечения государственных (муниципальных) нужд","901","0707","0520228000","240",0,0,{"$error":"#DIV/0!"}]
["Укрепление материально-технической базы учреждений по работе с молодежью","901","0707","0520328000","000",201036,124800,62.078433713364767]
["Иные закупки товаров, работ и услуг для обеспечения государственных (муниципальных) нужд","901","0707","0520328000","240",201036,124800,62.078433713364767]
["Укрепление материально-технической базы муниципальных учреждений по работе с молодежью","901","0707","0520348800","000",135400,0,0]
["Иные закупки товаров, работ и услуг для обеспечения государственных (муниципальных) нужд","901","0707","0520348800","240",135400,0,0]
["Подпрограмма \"Патриотическое воспитание молодежи в МО Красноуфимский округ до 2020 года\"","901","0707","0530000000","000",182514,79638.100000000006,43.633967805209465]
["организация.проведение и участие в городских. окружных. областных играх. соревнованиях.сборах.фестивалях","901","0707","0530128000","000",182514,79638.100000000006,43.633967805209465]
["Иные закупки товаров, работ и услуг для обеспечения государственных (муниципальных) нужд","901","0707","0530128000","240",182514,79638.100000000006,43.633967805209465]
["Подпрограмма \"Организация трудоустройства несовершеннолетних граждан в МО Красноуфимский округ\"","901","0707","0540000000","000",238000,212567.58,89.314109243697473]
["трудоустройство несоверщеннолетних граждан МО Красноуфимский округ","901","0707","0540128000","000",238000,212567.58,89.314109243697473]
["Иные закупки товаров, работ и услуг для обеспечения государственных (муниципальных) нужд","901","0707","0540128000","240",238000,212567.58,89.314109243697473]
["СОЦИАЛЬНАЯ ПОЛИТИКА","901","1000","0000000000","000",117567300,61652565.789999999,52.44023277731138]
["Пенсионное обеспечение","901","1001","0000000000","000",6693200,3210631.81,47.968562272156817]
["Непрограммные направления  расходов","901","1001","7000000000","000",6693200,3210631.81,47.968562272156817]
["Доплаты к пенсиям муниципальных служащих","901","1001","7000029000","000",6693200,3210631.81,47.968562272156817]
["Публичные нормативные социальные выплаты гражданам","901","1001","7000029000","310",6693200,3210631.81,{"$f":"G264/F264*100","v":47.968562272156817}]
["Социальное обеспечение населения","901","1003","0000000000","000",105807825,56292696.310000002,53.202772394196742]
["Муниципальная программа МО Красноуфимский округ \"Развитие физической культуры, спорта и формирование здорового образа жизни населения и молодежной политики МО Красноуфимский округ до 2020 года\"","901","1003","0500000000","000",393800,0,0]
["Подпрограмма \"Обеспечение жильем молодых семей в МО Красноуфимский округ до 2020 года\"","901","1003","0550000000","000",393800,0,0]
["Предоставление социальных выплат молодым семьям на приобретение (строительство) жилья","901","1003","0550128000","000",393800,0,0]
["Социальные выплаты гражданам, кроме публичных нормативных социальных выплат","901","1003","0550128000","320",393800,0,0]
["Муниципальная программа МО Красноуфимский округ \"Развитие и модернизация жилищно-коммунального хозяйства и дорожного хозяйства, повышение  энергетической эффективности в МО Красноуфимский округ до 2020 года\"","901","1003","0900000000","000",101549425,55103396.310000002,54.262637439847637]
["Подпрограмма \"Социальная поддержка граждан и осуществление переданных полномочий Российской Федерации и Свердловской области  по предоставлению поддержки отдельным категориям граждан  в МО Красноуфимский округ\"","901","1003","0960000000","000",101549425,55103396.310000002,54.262637439847637]
["Субвенции на осуществление государственного полномочия Свердловской области по предоставлению гражданам субсидий на оплату жилого помещения и коммунальных услуг","901","1003","0960149100","000",12399727,5489833.6900000004,44.27382707699936]
["Иные закупки товаров, работ и услуг для обеспечения государственных (муниципальных) нужд","901","1003","0960149100","240",183248,70005.53,38.202616126779013]
["Публичные нормативные социальные выплаты гражданам","901","1003","0960149100","310",12216479,5419828.1600000001,44.36489564628237]
["Субвенции на осуществление государственного полномочия Свердловской области по предоставлению отдельным категориям граждан компенсаций расходов на оплату жилого помещения и коммунальных услуг","901","1003","0960249200","000",77240998,44888774.689999998,58.115218410305879]
["Иные закупки товаров, работ и услуг для обеспечения государственных (муниципальных) нужд","901","1003","0960249200","240",1158615,566443.56999999995,48.889714875087925]
["Публичные нормативные социальные выплаты гражданам","901","1003","0960249200","310",76082383,44322331.119999997,58.255708315550528]
["Субвенции на осуществление государственного полномочия Российской Федерации по предоставлению мер социальной поддержки по оплате жилого помещения и коммунальных услуг","901","1003","0960352500","000",11897000,4724787.93,39.714112213162977]
["Иные закупки товаров, работ и услуг для обеспечения государственных (муниципальных) нужд","901","1003","0960352500","240",178455,57756.09,32.364512061864332]
["Публичные нормативные социальные выплаты гражданам","901","1003","0960352500","310",11718545,4667031.84,39.826035058106612]
["Субвенции на компенсацию отдельным категориям граждан оплаты взносов на капитальный ремонт общего имущества в многоквартирном доме","901","1003","09606R4620","000",11700,0,0]
["Иные закупки товаров, работ и услуг для обеспечения государственных (муниципальных) нужд","901","1003","09606R4620","240",173,0,0]
["Публичные нормативные социальные выплаты гражданам","901","1003","09606R4620","310",11527,0,0]
["Муниципальная программа МО Красноуфимский округ \"Устойчивое развитие сельских территорий муниципального образования Красноуфимский округ до 2020 года\"","901","1003","1100000000","000",3764600,1164600,30.935557562556447]
["Подпрограмма \"Улучшение жилищных условий граждан, проживающих в сельской местности, в том числе молодых семей и молодых специалистов, в МО Красноуфимский округ до 2020 года\"","901","1003","1120000000","000",3764600,1164600,30.935557562556447]
["Улучшение жилищных условий граждан, проживающих в сельской местности, в том числе молодых семей и молодых специалистов","901","1003","1120129000","000",479100,0,0]
["Социальные выплаты гражданам, кроме публичных нормативных социальных выплат","901","1003","1120129000","320",479100,0,0]
["Улучшение жилищных условий граждан, проживающих в сельской местности, в том числе молодых семей и молодых специалистов за счет средств областного бюджета","901","1003","1120145672","000",2120900,0,0]
["Социальные выплаты гражданам, кроме публичных нормативных социальных выплат","901","1003","1120145672","320",2120900,0,0]
["Улучшение жилищных условий граждан, проживающих в сельской местности, в том числе молодых семей и молодых специалистов","901","1003","11201L5670","000",1164600,1164600,100]
["Социальные выплаты гражданам, кроме публичных нормативных социальных выплат","901","1003","11201L5670","320",1164600,1164600,100]
["Непрограммные направления  расходов","901","1003","7000000000","000",100000,24700,24.7]
["Резервные фонды местных администраций","901","1003","7000021000","000",100000,24700,24.7]
["Социальные выплаты гражданам, кроме публичных нормативных социальных выплат","901","1003","7000021000","320",100000,24700,24.7]
["Другие вопросы в области социальной политики","901","1006","0000000000","000",5066275,2149237.67,42.422443906025634]
["Муниципальная программа МО Красноуфимский округ \"Развитие и модернизация жилищно-коммунального хозяйства и дорожного хозяйства, повышение  энергетической эффективности в МО Красноуфимский округ до 2020 года\"","901","1006","0900000000","000",4652275,1986737.67,42.704648156009696]
["Подпрограмма \"Обеспечение реализации муниципальной программы \"Развитие и модернизация жилищно-коммунального хозяйства и дорожного хозяйства, повышение энергетической эффективности в МО Красноуфимский округ до 2020 года\"","901","1006","0980000000","000",4652275,1986737.67,42.704648156009696]
["Cодержание отдела субсидий","901","1006","0980349100","000",800273,361753.83,45.203802952242548]
["Расходы на выплаты персоналу казенных учреждений","901","1006","0980349100","110",393650,166448.03,42.283254159786608]
["Иные закупки товаров, работ и услуг для обеспечения государственных (муниципальных) нужд","901","1006","0980349100","240",406623,195305.8,48.031173839158136]
["Содержание отдела компенсаций","901","1006","0980449200","000",3852002,1624983.84,42.185436040791259]
["Расходы на выплаты персоналу казенных учреждений","901","1006","0980449200","110",2422447,1050499.4099999999,43.365217484634336]
["Иные закупки товаров, работ и услуг для обеспечения государственных (муниципальных) нужд","901","1006","0980449200","240",1429555,574484.43000000005,40.186241872470809]
["Муниципальная программа МО Красноуфимский округ \"Социальная поддержка и благополучие населения МО Красноуфимский округ до 2024г года\"","901","1006","1200000000","000",414000,162500,39.251207729468604]
["Подпрограмма \"Развитие и поддержка некоммерческих общественных организаций и объединений в МО Красноуфимский округ до 2024 года\"","901","1006","1210000000","000",414000,162500,39.251207729468604]
["Поддержка социально-ориентированных некоммерческих организаций и объединений","901","1006","1210429000","000",414000,162500,39.251207729468604]
["Субсидии некоммерческим организациям (за исключением государственных (муниципальных) учреждений)","901","1006","1210429000","630",414000,162500,39.251207729468604]
["ФИЗИЧЕСКАЯ КУЛЬТУРА И СПОРТ","901","1100","0000000000","000",1404893.35,590699.68000000005,42.045873446550232]
["Массовый спорт","901","1102","0000000000","000",1404893.35,590699.68000000005,42.045873446550232]
["Муниципальная программа МО Красноуфимский округ \"Развитие физической культуры, спорта и формирование здорового образа жизни населения и молодежной политики МО Красноуфимский округ до 2020 года\"","901","1102","0500000000","000",1404893.35,590699.68000000005,42.045873446550232]
["Подпрограмма \"Развитие физической культуры, спорта и формирование здорового образа жизни населения МО Красноуфимский округ до 2020 года\"","901","1102","0510000000","000",1404893.35,590699.68000000005,42.045873446550232]
["Организация и проведение мероприятий в сфере физической культуры и спорта","901","1102","0510128000","000",1364893.35,590699.68000000005,43.27808322899368]
["Иные закупки товаров, работ и услуг для обеспечения государственных (муниципальных) нужд","901","1102","0510128000","240",1364893.35,590699.68000000005,43.27808322899368]
["Уплата налогов, сборов и иных платежей","901","1102","0510128000","850",0,0,{"$error":"#DIV/0!"}]
["Мероприятия по обустройству спортивных площадок","901","1102","0510328000","000",40000,0,0]
["Иные закупки товаров, работ и услуг для обеспечения государственных (муниципальных) нужд","901","1102","0510328000","240",40000,0,0]
["СРЕДСТВА МАССОВОЙ ИНФОРМАЦИИ","901","1200","0000000000","000",526500,137161.62,26.051589743589744]
["Другие вопросы в области средств массовой информации","901","1204","0000000000","000",526500,137161.62,26.051589743589744]
["Непрограммные направления  расходов","901","1204","7000000000","000",526500,137161.62,26.051589743589744]
["Обнародование (официальное опубликование) правовых актов органов муниципальной власти МО Красноуфимский округ и иной официальной информации.","901","1204","7000621000","000",526500,137161.62,26.051589743589744]
["Иные закупки товаров, работ и услуг для обеспечения государственных (муниципальных) нужд","901","1204","7000621000","240",526500,137161.62,26.051589743589744]
["Комитет по управлению имуществом Муниципального образования Красноуфимский округ","902","0000","0000000000","000",9604396.0500000007,2049048.27,21.334483285911556]
["ОБЩЕГОСУДАРСТВЕННЫЕ ВОПРОСЫ","902","0100","0000000000","000",3602900,1300741.67,36.102630381081902]
["Другие общегосударственные вопросы","902","0113","0000000000","000",3602900,1300741.67,36.102630381081902]
["Муниципальная программа МО Красноуфимский округ \"Повышение эффективности управления муниципальной собственностью МО Красноуфимский округ до 2020 года\"","902","0113","0100000000","000",3532700,1300741.67,36.82004330964984]
["Подпрограмма \"Управление муниципальной собственностью и приватизация муниципального имущества до 2020 года\"","902","0113","0110000000","000",80000,34000,42.5]
["Оформление права собственности МО Красноуфимский округ на объекты недвижимости","902","0113","0110122000","000",80000,34000,42.5]
["Иные закупки товаров, работ и услуг для обеспечения государственных (муниципальных) нужд","902","0113","0110122000","240",80000,34000,{"$f":"G328/F328*100","v":42.5}]
["Подпрограмма \"Обеспечение реализации муниципального программы \"Повышение эффективности управления муниципальной собственностью МО Красноуфимский округ до 2020 года\"","902","0113","0130000000","000",3452700,1266741.67,36.688437165117158]
["Обеспечение деятельности органов местного самоуправления (центральный аппарат)","902","0113","0130121000","000",2351300,777274.64,33.057229617658315]
["Расходы на выплаты персоналу государственных (муниципальных) органов","902","0113","0130121000","120",2224601,731046.55,32.861917710187136]
["Иные закупки товаров, работ и услуг для обеспечения государственных (муниципальных) нужд","902","0113","0130121000","240",126699,46228.09,36.486546855144866]
["Мероприятия по землеустройству и землепользованию","902","0113","0130222000","000",1036323,454614.72,43.868052721014585]
["Расходы на выплаты персоналу казенных учреждений","902","0113","0130222000","110",867402,374791.72,43.208537679184502]
["Иные закупки товаров, работ и услуг для обеспечения государственных (муниципальных) нужд","902","0113","0130222000","240",168921,79823,47.254633822911302]
["Содержание муниципального жилья","902","0113","0130322000","000",65077,34852.31,53.555495797286291]
["Иные закупки товаров, работ и услуг для обеспечения государственных (муниципальных) нужд","902","0113","0130322000","240",65077,34852.31,53.555495797286291]
["Непрограммные направления  расходов","902","0113","7000000000","000",70200,0,0]
["Выполнение обязательств по выплате вознаграждений агентам","902","0113","7000921000","000",70200,0,0]
["Иные закупки товаров, работ и услуг для обеспечения государственных (муниципальных) нужд","902","0113","7000921000","240",70200,0,0]
["НАЦИОНАЛЬНАЯ ЭКОНОМИКА","902","0400","0000000000","000",5283196.05,438050,8.2913826375986943]
["Другие вопросы в области национальной экономики","902","0412","0000000000","000",5283196.05,438050,8.2913826375986943]
["Муниципальная программа МО Красноуфимский округ \"Повышение эффективности управления муниципальной собственностью МО Красноуфимский округ до 2020 года\"","902","0412","0100000000","000",5283196.05,438050,8.2913826375986943]
["Подпрограмма \"Актуализация сведений государственного кадастра недвижимости в МО Красноуфимский округ до 2020 года\"","902","0412","0120000000","000",5283196.05,438050,8.2913826375986943]
["Межевание земельных участков, составление технических планов","902","0412","0120123000","000",5223196.05,416650,7.976916738555123]
["Иные закупки товаров, работ и услуг для обеспечения государственных (муниципальных) нужд","902","0412","0120123000","240",5223196.05,416650,7.976916738555123]
["Независимая оценка, обследование объектов недвижимости","902","0412","0120223000","000",60000,21400,35.666666666666671]
["Иные закупки товаров, работ и услуг для обеспечения государственных (муниципальных) нужд","902","0412","0120223000","240",60000,21400,35.666666666666671]
["ЖИЛИЩНО-КОММУНАЛЬНОЕ ХОЗЯЙСТВО","902","0500","0000000000","000",418900,162478.25,38.786882310814036]
["Жилищное хозяйство","902","0501","0000000000","000",418900,162478.25,38.786882310814036]
["Муниципальная программа МО Красноуфимский округ \"Повышение эффективности управления муниципальной собственностью МО Красноуфимский округ до 2020 года\"","902","0501","0100000000","000",418900,162478.25,38.786882310814036]
["Подпрограмма \"Улучшение жилищных условий граждан, проживающих на территории МО Красноуфимский округ\"","902","0501","0140000000","000",418900,162478.25,38.786882310814036]
["Взносы на капитальный ремонт общего имущества в многоквартирных домах, находящегося в собственности МО Красноуфимский округ","902","0501","0140223000","000",418900,162478.25,38.786882310814036]
["Иные закупки товаров, работ и услуг для обеспечения государственных (муниципальных) нужд","902","0501","0140223000","240",418900,162478.25,38.786882310814036]
["СОЦИАЛЬНАЯ ПОЛИТИКА","902","1000","0000000000","000",263400,120687.15,45.81896355353075]
["Пенсионное обеспечение","902","1001","0000000000","000",263400,120687.15,45.81896355353075]
["Непрограммные направления  расходов","902","1001","7000000000","000",263400,120687.15,45.81896355353075]
["Доплаты к пенсиям муниципальных служащих","902","1001","7000029000","000",263400,120687.15,45.81896355353075]
["Публичные нормативные социальные выплаты гражданам","902","1001","7000029000","310",263400,120687.15,45.81896355353075]
["СРЕДСТВА МАССОВОЙ ИНФОРМАЦИИ","902","1200","0000000000","000",36000,27091.200000000001,75.253333333333345]
["Другие вопросы в области средств массовой информации","902","1204","0000000000","000",36000,27091.200000000001,75.253333333333345]
["Непрограммные направления  расходов","902","1204","7000000000","000",36000,27091.200000000001,75.253333333333345]
["Обнародование (официальное опубликование) правовых актов органов муниципальной власти МО Красноуфимский округ и иной официальной информации.","902","1204","7000621000","000",36000,27091.200000000001,75.253333333333345]
["Иные закупки товаров, работ и услуг для обеспечения государственных (муниципальных) нужд","902","1204","7000621000","240",36000,27091.200000000001,75.253333333333345]
["Муниципальный отдел управления образованием Муниципального образования Красноуфимский округ","906","0000","0000000000","000",694358973.80999994,345574351.18000001,49.768832003971596]
["ОБРАЗОВАНИЕ","906","0700","0000000000","000",694319673.80999994,345574351.18000001,49.771649027846237]
["Дошкольное образование","906","0701","0000000000","000",212746620.16,103099781.20999999,48.461301586113052]
["Муниципальная программа МО Красноуфимский округ  \"Развитие системы образования в муниципальном образовании Красноуфимский округ  до 2020 года\"","906","0701","0200000000","000",212746620.16,103099781.20999999,48.461301586113052]
["Подпрограмма \"Развитие системы дошкольного образования в МО Красноуфимский округ до 2020 года\"","906","0701","0210000000","000",170526059.97999999,88212011.489999995,51.729343597304641]
["Обеспечение государственных гарантий прав граждан на получение общедоступного и бесплатного дошкольного образования в муниципальных дошкольных организациях в части финансирования расходов на оплату труда работников дошкольных образовательных организаций","906","0701","0210145110","000",80311000,39367568.450000003,49.018899590342549]
["Расходы на выплаты персоналу казенных учреждений","906","0701","0210145110","110",32381318,15829436.449999999,48.884472367678178]
["Субсидии бюджетным учреждениям","906","0701","0210145110","610",47929682,23538132,49.109718691644986]
["Обеспечение государственных гарантий прав граждан на получение общедоступного и бесплатного дошкольного образования в муниципальных дошкольных организациях в части финансирования расходов на приобретение учебников и учебных пособий, средств обучения, игр, игрушек","906","0701","0210145120","000",1347000,482491.22,35.819689680772079]
["Иные закупки товаров, работ и услуг для обеспечения государственных (муниципальных) нужд","906","0701","0210145120","240",601218,189585.22,31.533523613730789]
["Субсидии бюджетным учреждениям","906","0701","0210145120","610",745782,292906,39.275016023449211]
["Предоставление дошкольного образования, создание условий для присмотра и ухода за детьми, содержание детей в муниципальных казенных образовательных учреждениях","906","0701","0210225000","000",41485269.549999997,24338146.920000002,58.666961029785583]
["Расходы на выплаты персоналу казенных учреждений","906","0701","0210225000","110",21071284,11353307.380000001,53.880472495174004]
["Иные закупки товаров, работ и услуг для обеспечения государственных (муниципальных) нужд","906","0701","0210225000","240",18928985.550000001,12193927.539999999,64.419339894313552]
["Уплата налогов, сборов и иных платежей","906","0701","0210225000","850",1485000,790912,53.260067340067337]
["Предоставление дошкольного образования, создание условий для присмотра и ухода за детьми, содержание детей в муниципальных бюджетных образовательных учреждениях","906","0701","0210325000","000",34757490.43,19132335.350000001,55.045215040860484]
["Субсидии бюджетным учреждениям","906","0701","0210325000","610",34147589.43,18802069.43,55.061190976724241]
["Субсидии автономным учреждениям","906","0701","0210325000","620",609901,330265.92,54.150742497552883]
["Организация питания воспитанников в муниципальных казенных образовательных учреждениях дошкольного образования","906","0701","0210425000","000",12215000,4754615.75,38.924402374130167]
["Иные закупки товаров, работ и услуг для обеспечения государственных (муниципальных) нужд","906","0701","0210425000","240",12215000,4754615.75,38.924402374130167]
["Организация питания сотрудников в муниципальных казенных образовательных учреждениях дошкольного образования","906","0701","0210525000","000",410300,136853.79999999999,33.354569826955881]
["Иные закупки товаров, работ и услуг для обеспечения государственных (муниципальных) нужд","906","0701","0210525000","240",410300,136853.79999999999,33.354569826955881]
["Подпрограмма \"Развитие системы общего образования в Муниципальном образовании  Красноуфимский округ до 2020 года\"","906","0701","0220000000","000",30004700,13639858.5,45.459073078551029]
["Обеспечение государственных гарантий реализации прав на получение общедоступного и бесплатного дошкольного, начального общего, основного общего, среднего общего образования в муниципальных образовательных организациях и финансовое обеспечение дополнительного образования детей в муниципальных общеобразовательных организациях в части финансирования расходов на оплату труда работников общеобразовательных организаций","906","0701","0220145310","000",29607700,13504579.5,45.611714182459295]
["Расходы на выплаты персоналу казенных учреждений","906","0701","0220145310","110",27897960,12561444.5,45.026390818540136]
["Субсидии автономным учреждениям","906","0701","0220145310","620",1709740,943135,55.162480845040761]
["Обеспечение государственных гарантий реализации прав на получение общедоступного и бесплатного дошкольного, начального общего, основного общего, среднего общего образования в муниципальных образовательных организациях и финансовое обеспечение дополнительного образования детей в муниципальных общеобразовательных организациях в части финансирования расходов на приобретение учебников и учебных пособий, средств обучения, игр, игрушек","906","0701","0220145320","000",397000,135279,34.07531486146096]
["Иные закупки товаров, работ и услуг для обеспечения государственных (муниципальных) нужд","906","0701","0220145320","240",375264,135279,{"$f":"G392/F392*100","v":36.049021488871837}]
["Субсидии автономным учреждениям","906","0701","0220145320","620",21736,0,0]
["Подпрограмма \"Укрепление и развитие материально-технической базы образовательных организаций МО Красноуфимский округ\"","906","0701","0250000000","000",6735093.1799999997,1247911.22,18.528492281379247]
["Капитальный ремонт, приведение в соответствие с требованиями пожарной безопасности и санитарного законодательства зданий и помещений, в которых размещаются муниципальные образовательные организации","906","0701","0250925000","000",6652733.1799999997,1247911.22,18.75787268534344]
["Иные закупки товаров, работ и услуг для обеспечения государственных (муниципальных) нужд","906","0701","0250925000","240",5750929.4400000004,817221.3,14.210247378726315]
["Субсидии бюджетным учреждениям","906","0701","0250925000","610",901803.74,430689.92,47.758719652238298]
["Приобретение спортивного инвентаря для МКОУ \"КРЦДОУ\" и оборудования для обустройства детских площадок Калиновского детского сада и Т-Еманзельгинской начальной школы-детского сада за счет средств Резервного фонда Правительства Свердловской области","906","0701","0251440700","000",82360,0,0]
["Иные закупки товаров, работ и услуг для обеспечения государственных (муниципальных) нужд","906","0701","0251440700","240",41180,0,0]
["Субсидии бюджетным учреждениям","906","0701","0251440700","610",41180,0,0]
["Подпрограмма \"Обеспечение реализации муниципальной программы МО Красноуфимский округ до 2020 года\"","906","0701","0260000000","000",5480767,0,0]
["Обеспечение оплаты труда работников муниципальных учреждений в сфере образования не ниже минимального размера оплаты труда в 2018 году","906","0701","0260440600","000",5480767,0,0]
["Расходы на выплаты персоналу казенных учреждений","906","0701","0260440600","110",3029111,0,0]
["Субсидии бюджетным учреждениям","906","0701","0260440600","610",2451656,0,0]
["Общее образование","906","0702","0000000000","000",425636629.85000002,220000730.11000001,51.687452319959206]
["Муниципальная программа МО Красноуфимский округ  \"Развитие системы образования в муниципальном образовании Красноуфимский округ  до 2020 года\"","906","0702","0200000000","000",425636629.85000002,220000730.11000001,51.687452319959206]
["Подпрограмма \"Развитие системы общего образования в Муниципальном образовании  Красноуфимский округ до 2020 года\"","906","0702","0220000000","000",399401219.00999999,217650770.19,54.494267876671302]
["Обеспечение государственных гарантий реализации прав на получение общедоступного и бесплатного дошкольного, начального общего, основного общего, среднего общего образования в муниципальных образовательных организациях и финансовое обеспечение дополнительного образования детей в муниципальных общеобразовательных организациях в части финансирования расходов на оплату труда работников общеобразовательных организаций","906","0702","0220145310","000",241868300,137007990.31999999,56.6456994653702]
["Расходы на выплаты персоналу казенных учреждений","906","0702","0220145310","110",131108400,73278133.319999993,55.891257402271698]
["Субсидии автономным учреждениям","906","0702","0220145310","620",110759900,63729857,57.538745520716425]
["Обеспечение государственных гарантий реализации прав на получение общедоступного и бесплатного дошкольного, начального общего, основного общего, среднего общего образования в муниципальных образовательных организациях и финансовое обеспечение дополнительного образования детей в муниципальных общеобразовательных организациях в части финансирования расходов на приобретение учебников и учебных пособий, средств обучения, игр, игрушек","906","0702","0220145320","000",5714000,2344141.84,41.024533426671333]
["Иные закупки товаров, работ и услуг для обеспечения государственных (муниципальных) нужд","906","0702","0220145320","240",2782860,1376953.16,49.479785544368021]
["Субсидии автономным учреждениям","906","0702","0220145320","620",2931140,967188.68,32.997014131020698]
["Организация питания обучающихся в муниципальных общеобразовательных организациях","906","0702","0220225000","000",600000,333160.68,55.526779999999995]
["Иные закупки товаров, работ и услуг для обеспечения государственных (муниципальных) нужд","906","0702","0220225000","240",277720,141965.68,51.118277401699551]
["Субсидии автономным учреждениям","906","0702","0220225000","620",322280,191195,59.325741591162959]
["Субсидии на осуществление мероприятий по организации питания обучающихся в муниципальных общеобразовательных организациях","906","0702","0220245400","000",20744000,9520108.6199999992,45.893311897416119]
["Иные закупки товаров, работ и услуг для обеспечения государственных (муниципальных) нужд","906","0702","0220245400","240",11544000,4545108.62,39.372042792792797]
["Субсидии автономным учреждениям","906","0702","0220245400","620",9200000,4975000,54.076086956521742]
["Обеспечение дополнительных гарантий по социальной поддержке детей-сирот, оставшихся без попечения родителей","906","0702","0220345200","000",24000,12000,50]
["Субсидии бюджетным учреждениям","906","0702","0220345200","610",0,0,{"$error":"#DIV/0!"}]
["Субсидии автономным учреждениям","906","0702","0220345200","620",24000,12000,50]
["Предоставление общего образования и создание условий для содержания детей в муниципальных казенных общеобразовательных организациях","906","0702","0220525000","000",65244157.549999997,38312487.359999999,58.721713634878562]
["Расходы на выплаты персоналу казенных учреждений","906","0702","0220525000","110",35820027.039999999,18985507.02,53.00249214998918]
["Иные закупки товаров, работ и услуг для обеспечения государственных (муниципальных) нужд","906","0702","0220525000","240",27811084.510000002,18602107.34,66.887385615297603]
["Уплата налогов, сборов и иных платежей","906","0702","0220525000","850",1613046,724873,44.938148075132389]
["Предоставление общего образования и создание условий для содержания детей в муниципальных автономных общеобразовательных организациях","906","0702","0220625000","000",50157061.460000001,29208244.460000001,58.233563948504887]
["Субсидии автономным учреждениям","906","0702","0220625000","620",50157061.460000001,29208244.460000001,58.233563948504887]
["Организация питания сотрудников и учащихся в муниципальных казенных общеобразовательных учреждениях","906","0702","0220725000","000",1875700,893557.21,47.638599456203018]
["Иные закупки товаров, работ и услуг для обеспечения государственных (муниципальных) нужд","906","0702","0220725000","240",1875700,893557.21,47.638599456203018]
["Обеспечение условий для организации военно-патриотического воспитания","906","0702","0220825000","000",75000,19079.7,25.439600000000002]
["Иные закупки товаров, работ и услуг для обеспечения государственных (муниципальных) нужд","906","0702","0220825000","240",75000,19079.7,25.439600000000002]
["Создание новых мест в образовательных организациях МО Красноуфимский округ","906","0702","0220925000","000",13099000,0,0]
["Иные закупки товаров, работ и услуг для обеспечения государственных (муниципальных) нужд","906","0702","0220925000","240",3099000,0,0]
["Бюджетные инвестиции","906","0702","0220925000","410",10000000,0,0]
["Подпрограмма \"Укрепление и развитие материально-технической базы образовательных организаций МО Красноуфимский округ\"","906","0702","0250000000","000",18226210.84,2349959.92,12.893299329351994]
["Создание в общеобразовательных организациях, расположенных в сельской местности, условий для занятия физической культурой и спортом","906","0702","0250525000","000",41713.339999999997,0,0]
["Субсидии автономным учреждениям","906","0702","0250525000","620",41713.339999999997,0,0]
["Создание в общеобразовательных организациях, расположенных в сельской местности, условий для занятий физической культурой и спортом","906","0702","02505L0970","000",1182226.6599999999,0,0]
["Субсидии автономным учреждениям","906","0702","02505L0970","620",1182226.6599999999,0,0]
["Капитальный ремонт, приведение в соответствие с требованиями пожарной безопасности и санитарного законодательства зданий и помещений, в которых размещаются муниципальные образовательные организации","906","0702","0250925000","000",13917072.25,2349959.92,16.885447440283283]
["Иные закупки товаров, работ и услуг для обеспечения государственных (муниципальных) нужд","906","0702","0250925000","240",10932859.82,649418.48,5.940060429678133]
["Субсидии автономным учреждениям","906","0702","0250925000","620",2984212.43,1700541.4399999999,56.984597440337041]
["Осуществление мероприятий, направленных на устранение нарушений, выявленных органами госнадзора в результате проверок в  муниципальных общеобразовательных организациях","906","0702","0251145Э00","000",385198.59,0,0]
["Иные закупки товаров, работ и услуг для обеспечения государственных (муниципальных) нужд","906","0702","0251145Э00","240",385198.59,0,0]
["Обеспечение мероприятий по оборудованию спортивных площадок в муниципальных общеобразовательных организациях","906","0702","0251225000","000",0,0,{"$error":"#DIV/0!"}]
["Субсидии автономным учреждениям","906","0702","0251225000","620",0,0,{"$error":"#DIV/0!"}]
["Проектирование и строительство спортивных залов в муниципальных общеобразовательных организациях","906","0702","0251625000","000",2700000,0,0]
[null,"906","0702","0251625000","460",2700000,0,0]
["Подпрограмма \"Обеспечение реализации муниципальной программы МО Красноуфимский округ до 2020 года\"","906","0702","0260000000","000",8009200,0,0]
["Обеспечение оплаты труда работников муниципальных учреждений в сфере образования не ниже минимального размера оплаты труда в 2018 году","906","0702","0260440600","000",8009200,0,0]
["Расходы на выплаты персоналу казенных учреждений","906","0702","0260440600","110",4424509,0,0]
["Субсидии автономным учреждениям","906","0702","0260440600","620",3584691,0,0]
["Дополнительное образование детей","906","0703","0000000000","000",21765034.579999998,9611568.9600000009,44.160595861548138]
["Муниципальная программа МО Красноуфимский округ  \"Развитие системы образования в муниципальном образовании Красноуфимский округ  до 2020 года\"","906","0703","0200000000","000",21765034.579999998,9611568.9600000009,44.160595861548138]
["Подпрограмма \"Развитие системы дополнительного образования детей в МО Красноуфимский округ до 2020 года\"","906","0703","0230000000","000",20142090,9544048.9600000009,{"$f":"G456/F456*100","v":47.3836079572676}]
["Предоставление дополнительного образования детей в муниципальных организациях дополнительного образования","906","0703","0230125000","000",20017490,9544048.9600000009,47.678549908105367]
["Расходы на выплаты персоналу казенных учреждений","906","0703","0230125000","110",18526970,8877423.5999999996,47.916219435773897]
["Иные закупки товаров, работ и услуг для обеспечения государственных (муниципальных) нужд","906","0703","0230125000","240",1483320,665376.73,44.857261413585739]
["Уплата налогов, сборов и иных платежей","906","0703","0230125000","850",7200,1248.6300000000001,17.342083333333335]
["Реализация мероприятий по поэтапному внедрению Всероссийского физкультурно-спортивного комплекса \"Готов к труду и обороне\" (ГТО)","906","0703","0230248Г00","000",124600,0,0]
["Иные закупки товаров, работ и услуг для обеспечения государственных (муниципальных) нужд","906","0703","0230248Г00","240",124600,0,0]
["Подпрограмма \"Укрепление и развитие материально-технической базы образовательных организаций МО Красноуфимский округ\"","906","0703","0250000000","000",1356334.58,67520,4.9781227283905123]
["Капитальный ремонт, приведение в соответствие с требованиями пожарной безопасности и санитарного законодательства зданий и помещений, в которых размещаются муниципальные образовательные организации","906","0703","0250925000","000",1203164.58,0,0]
["Иные закупки товаров, работ и услуг для обеспечения государственных (муниципальных) нужд","906","0703","0250925000","240",1203164.58,0,0]
["Приобретение спортивного инвентаря для МКОУ \"КРЦДОУ\" и оборудования для обустройства детских площадок Калиновского детского сада и Т-Еманзельгинской начальной школы-детского сада за счет средств Резервного фонда Правительства Свердловской области","906","0703","0251440700","000",153170,67520,44.081739243977282]
["Иные закупки товаров, работ и услуг для обеспечения государственных (муниципальных) нужд","906","0703","0251440700","240",153170,67520,44.081739243977282]
["Подпрограмма \"Обеспечение реализации муниципальной программы МО Красноуфимский округ до 2020 года\"","906","0703","0260000000","000",266610,0,0]
["Обеспечение оплаты труда работников муниципальных учреждений в сфере образования не ниже минимального размера оплаты труда в 2018 году","906","0703","0260440600","000",266610,0,0]
["Расходы на выплаты персоналу казенных учреждений","906","0703","0260440600","110",266610,0,0]
["Молодежная политика","906","0707","0000000000","000",17977755.050000001,8467709.6400000006,47.101040238057976]
["Муниципальная программа МО Красноуфимский округ  \"Развитие системы образования в муниципальном образовании Красноуфимский округ  до 2020 года\"","906","0707","0200000000","000",17977755.050000001,8467709.6400000006,47.101040238057976]
["Подпрограмма \"Организация отдыха и оздоровления детей в каникулярное время в МО Красноуфимский округ до 2020 года\"","906","0707","0240000000","000",14845232.050000001,5480609.6399999997,36.918315736263615]
["Обеспечение деятельности загородного оздоровительного лагеря для детей \"Черкасово\"","906","0707","0240125000","000",2376216,1515000,63.756830187154698]
["Субсидии автономным учреждениям","906","0707","0240125000","620",2376216,1515000,63.756830187154698]
["Организация отдыха и оздоровления детей в каникулярное время в муниципальном образовании Красноуфимский округ","906","0707","0240225000","000",6315216.0499999998,2365609.64,37.458886937051034]
["Иные закупки товаров, работ и услуг для обеспечения государственных (муниципальных) нужд","906","0707","0240225000","240",3895476,707905.64,18.172506774525115]
["Субсидии автономным учреждениям","906","0707","0240225000","620",2419740.0499999998,1657704,68.507524186327373]
["Субсидии на организацию отдыха детей в каникулярное время","906","0707","0240245600","000",6153800,1600000,26.000195001462512]
["Субсидии автономным учреждениям","906","0707","0240245600","620",6153800,1600000,26.000195001462512]
["Подпрограмма \"Укрепление и развитие материально-технической базы образовательных организаций МО Красноуфимский округ\"","906","0707","0250000000","000",2987100,2987100,100]
["Обеспечение мероприятий по укреплению и развитию материально-технической базы муниципальных загородных оздоровительных лагерей","906","0707","0250225000","000",2565000,2565000,100]
["Субсидии автономным учреждениям","906","0707","0250225000","620",2565000,2565000,100]
["Капитальный ремонт, приведение в соответствие требованиям пожарной безопасности и санитарного законодательства зданий и сооружений муниципальных загородных оздоровительных лагерей","906","0707","0250245800","000",422100,422100,100]
["Субсидии автономным учреждениям","906","0707","0250245800","620",422100,422100,100]
["Подпрограмма \"Обеспечение реализации муниципальной программы МО Красноуфимский округ до 2020 года\"","906","0707","0260000000","000",145423,0,0]
["Обеспечение оплаты труда работников муниципальных учреждений в сфере образования не ниже минимального размера оплаты труда в 2018 году","906","0707","0260440600","000",145423,0,0]
["Субсидии автономным учреждениям","906","0707","0260440600","620",145423,0,0]
["Другие вопросы в области образования","906","0709","0000000000","000",16193634.17,4376460.1100000003,27.025805721286094]
["Муниципальная программа МО Красноуфимский округ  \"Развитие системы образования в муниципальном образовании Красноуфимский округ  до 2020 года\"","906","0709","0200000000","000",16193634.17,4376460.1100000003,27.025805721286094]
["Подпрограмма \"Обеспечение реализации муниципальной программы МО Красноуфимский округ до 2020 года\"","906","0709","0260000000","000",16193634.17,4376460.1100000003,27.025805721286094]
["Организация деятельности органа местного самоуправления в сфере образования (аппарат управления)","906","0709","0260121000","000",1748060,791407.62,45.273481459446472]
["Расходы на выплаты персоналу государственных (муниципальных) органов","906","0709","0260121000","120",1671560,773727.62,46.287756347364137]
["Иные закупки товаров, работ и услуг для обеспечения государственных (муниципальных) нужд","906","0709","0260121000","240",76500,17680,23.111111111111111]
["Создание материально-технических условий для обеспечения деятельности органа местного самоуправления в сфере образования","906","0709","0260225000","000",12970427.17,3276474.56,25.261115282142242]
["Расходы на выплаты персоналу казенных учреждений","906","0709","0260225000","110",6590713,2574584.36,39.063821471212599]
["Иные закупки товаров, работ и услуг для обеспечения государственных (муниципальных) нужд","906","0709","0260225000","240",1318414.17,701890.2,53.237458756985291]
["Бюджетные инвестиции","906","0709","0260225000","410",5061300,0,0]
["Организация и проведение муниципальных мероприятий в сфере образования","906","0709","0260425000","000",300000,73413,24.471]
["Иные закупки товаров, работ и услуг для обеспечения государственных (муниципальных) нужд","906","0709","0260425000","240",300000,73413,24.471]
["Организация деятельности органа местного самоуправления в сфере образования (прочий персонал)","906","0709","026П121000","000",1175147,235164.93,20.011533025230037]
["Расходы на выплаты персоналу государственных (муниципальных) органов","906","0709","026П121000","120",1175147,235164.93,20.011533025230037]
["СОЦИАЛЬНАЯ ПОЛИТИКА","906","1000","0000000000","000",39300,18101.150000000001,46.058905852417311]
["Пенсионное обеспечение","906","1001","0000000000","000",39300,18101.150000000001,46.058905852417311]
["Непрограммные направления  расходов","906","1001","7000000000","000",39300,18101.150000000001,46.058905852417311]
["Доплаты к пенсиям муниципальных служащих","906","1001","7000029000","000",39300,18101.150000000001,46.058905852417311]
["Публичные нормативные социальные выплаты гражданам","906","1001","7000029000","310",39300,18101.150000000001,46.058905852417311]
["Отдел культуры и туризма Администрации Муниципального образования Красноуфимский округ","908","0000","0000000000","000",147595400.58000001,70851818.450000003,48.004082899315506]
["ОБРАЗОВАНИЕ","908","0700","0000000000","000",14788118.529999999,8786290,59.414522423360637]
["Дополнительное образование детей","908","0703","0000000000","000",14788118.529999999,8786290,59.414522423360637]
["Муниципальная программа МО Красноуфимский округ \"Развитие культуры в МО Красноуфимский округ до 2020 года\"","908","0703","0300000000","000",14788118.529999999,8786290,59.414522423360637]
["Подпрограмма \"Развитие образования в сфере культуры и искусства в МО Красноуфимский округ до 2020 года\"","908","0703","0320000000","000",14788118.529999999,8786290,59.414522423360637]
["Организация дополнительного образования детей, детей-сирот и детей, оставшихся без попечения родителей, нуждающихся в социальной поддержки","908","0703","0320126000","000",13537500,8473320,62.591468144044327]
["Субсидии бюджетным учреждениям","908","0703","0320126000","610",13537500,8473320,62.591468144044327]
["Обеспечение оплаты труда работников МБОУ ДО \"Красноуфимская РДШИ\" в размере не ниже минимального размера оплаты труда в 2018 году","908","0703","0320240600","000",155218.53,0,0]
["Субсидии бюджетным учреждениям","908","0703","0320240600","610",155218.53,0,0]
["Обеспечение меры социальной поддержки по бесплатному получению художественного образования в муниципальных учреждениях дополнительного образования, в том числе в домах детского творчества, школах искусств, детям-сиротам, детям оставшимся без попечения родителей, и иным категориям несовершеннолетних граждан, нуждающихся в социальной поддержке","908","0703","0320246600","000",1095400,312970,28.571298155924772]
["Субсидии бюджетным учреждениям","908","0703","0320246600","610",1095400,312970,28.571298155924772]
["КУЛЬТУРА, КИНЕМАТОГРАФИЯ","908","0800","0000000000","000",132705882.05,62019048.899999999,46.734212487004072]
["Культура","908","0801","0000000000","000",131374271.05,61514232.649999999,{"$f":"G520/F520*100","v":46.823652879937335}]
["Муниципальная программа МО Красноуфимский округ \"Развитие культуры в МО Красноуфимский округ до 2020 года\"","908","0801","0300000000","000",131374271.05,61514232.649999999,46.823652879937335]
["Подпрограмма \"Развитие культуры и искусства в МО Красноуфимский округ до 2020 года\"","908","0801","0310000000","000",131374271.05,61514232.649999999,46.823652879937335]
["Организация деятельности учреждений культуры и искусства культурно-досуговой сферы","908","0801","0310126000","000",89353040,45680552,51.123668539984756]
["Субсидии бюджетным учреждениям","908","0801","0310126000","610",89353040,45680552,51.123668539984756]
["Обеспечение мероприятий по укреплению материально-технической базы учреждений культуры, в том числе капремонт зданий, в которых размещаются учреждения культуры","908","0801","0310126300","000",8658249.1199999992,22538.87,0.26031671863005945]
["Субсидии бюджетным учреждениям","908","0801","0310126300","610",8658249.1199999992,22538.87,0.26031671863005945]
["Строительство объектов социальной инфраструктуры","908","0801","0310126600","000",3989572.03,2436941.7799999998,61.082786867242]
["Субсидии бюджетным учреждениям","908","0801","0310126600","610",3989572.03,2436941.7799999998,61.082786867242]
["Обеспечение оплаты труда работников домов культуры МБУК \"ЦКНТ и БО\" в размере не ниже минимального размера оплаты труда в 2018 году","908","0801","0310140600","000",81637.33,0,0]
["Субсидии бюджетным учреждениям","908","0801","0310140600","610",81637.33,0,0]
["Расходы на проведение ремонтных работ в зданиях и помещениях, в которых размещаются муниципальные учреждения культуры, приведение в соответствие с требованиями норм пожарной безопасности и санитарного законодательства и (или) оснащение таких учреждений специальным оборудованием, музыкальным оборудованием, инвентарем и музыкальными инструментами","908","0801","0310146300","000",75768.429999999993,0,0]
["Субсидии бюджетным учреждениям","908","0801","0310146300","610",75768.429999999993,0,0]
["Организация библиотечного обслуживания","908","0801","0310326000","000",24038019,11368200,47.292582637529321]
["Субсидии бюджетным учреждениям","908","0801","0310326000","610",24038019,11368200,47.292582637529321]
["Обеспечение оплаты труда работников библиотек МБУК \"ЦКНТ и БО\" в размере не ниже минимального размера оплаты труда в 2018 году","908","0801","0310340600","000",84844.14,0,0]
["Субсидии бюджетным учреждениям","908","0801","0310340600","610",84844.14,0,0]
["Создание условий для развития местного народного творчества","908","0801","0310426000","000",5093141,2006000,39.386304050879403]
["Субсидии бюджетным учреждениям","908","0801","0310426000","610",5093141,2006000,39.386304050879403]
["Другие вопросы в области культуры, кинематографии","908","0804","0000000000","000",1331611,504816.25,37.910189236946827]
["Муниципальная программа МО Красноуфимский округ \"Развитие культуры в МО Красноуфимский округ до 2020 года\"","908","0804","0300000000","000",1331611,504816.25,37.910189236946827]
["Подпрограмма \"Развитие культуры и искусства в МО Красноуфимский округ до 2020 года\"","908","0804","0310000000","000",796711,298252.88,37.435516768313732]
["Мероприятия в сфере культуры и искусства для незащищенных слоев населения","908","0804","0310526000","000",796711,298252.88,37.435516768313732]
["Субсидии бюджетным учреждениям","908","0804","0310526000","610",796711,298252.88,37.435516768313732]
["Подпрограмма \"Обеспечение реализации муниципальной программы МО Красноуфимский округ \"Развитие культуры в МО Красноуфимский округ до 2020 года\"","908","0804","0330000000","000",534900,206563.37,38.617193868012713]
["Обеспечение деятельности органов местного самоуправления (центральный аппарат культура)","908","0804","0330121000","000",534900,206563.37,38.617193868012713]
["Расходы на выплаты персоналу государственных (муниципальных) органов","908","0804","0330121000","120",533400,205063.37,38.444576302962133]
["Иные закупки товаров, работ и услуг для обеспечения государственных (муниципальных) нужд","908","0804","0330121000","240",1500,1500,100]
["СОЦИАЛЬНАЯ ПОЛИТИКА","908","1000","0000000000","000",101400,46479.55,45.837820512820514]
["Пенсионное обеспечение","908","1001","0000000000","000",101400,46479.55,45.837820512820514]
["Непрограммные направления  расходов","908","1001","7000000000","000",101400,46479.55,45.837820512820514]
["Доплаты к пенсиям муниципальных служащих","908","1001","7000029000","000",101400,46479.55,45.837820512820514]
["Публичные нормативные социальные выплаты гражданам","908","1001","7000029000","310",101400,46479.55,45.837820512820514]
["Дума Муниципального образования Красноуфимский округ","912","0000","0000000000","000",2847100,952639.88,33.460007727160971]
["ОБЩЕГОСУДАРСТВЕННЫЕ ВОПРОСЫ","912","0100","0000000000","000",1781900,596498.41,33.475414445255062]
["Функционирование законодательных (представительных) органов государственной власти и представительных органов муниципальных образований","912","0103","0000000000","000",1781900,596498.41,33.475414445255062]
["Непрограммные направления  расходов","912","0103","7000000000","000",1781900,596498.41,33.475414445255062]
["Обеспечение деятельности муниципальных органов (центральный аппарат)","912","0103","7000121000","000",1683150,596498.41,35.439408846508037]
["Расходы на выплаты персоналу государственных (муниципальных) органов","912","0103","7000121000","120",1592100,580698.41,36.473739714842033]
["Иные закупки товаров, работ и услуг для обеспечения государственных (муниципальных) нужд","912","0103","7000121000","240",91050,15800,17.353102690829214]
["Функционирование представительных органов Дума (прочий персонал)","912","0103","7000П21000","000",98750,0,0]
["Расходы на выплаты персоналу государственных (муниципальных) органов","912","0103","7000П21000","120",98750,0,0]
["СОЦИАЛЬНАЯ ПОЛИТИКА","912","1000","0000000000","000",638200,263283.3,41.254042619868379]
["Пенсионное обеспечение","912","1001","0000000000","000",638200,263283.3,41.254042619868379]
["Непрограммные направления  расходов","912","1001","7000000000","000",638200,263283.3,41.254042619868379]
["Доплаты к пенсиям муниципальных служащих","912","1001","7000029000","000",638200,263283.3,41.254042619868379]
["Публичные нормативные социальные выплаты гражданам","912","1001","7000029000","310",638200,263283.3,41.254042619868379]
["СРЕДСТВА МАССОВОЙ ИНФОРМАЦИИ","912","1200","0000000000","000",427000,92858.17,21.746644028103042]
["Другие вопросы в области средств массовой информации","912","1204","0000000000","000",427000,92858.17,21.746644028103042]
["Непрограммные направления  расходов","912","1204","7000000000","000",427000,92858.17,21.746644028103042]
["Обнародование (официальное опубликование) правовых актов органов муниципальной власти МО Красноуфимский округ и иной официальной информации.","912","1204","7000621000","000",427000,92858.17,21.746644028103042]
["Иные закупки товаров, работ и услуг для обеспечения государственных (муниципальных) нужд","912","1204","7000621000","240",427000,92858.17,21.746644028103042]
["Ревизионная комиссия Муниципального образования Красноуфимский округ","913","0000","0000000000","000",2055800,822078.04,39.988230372604342]
["ОБЩЕГОСУДАРСТВЕННЫЕ ВОПРОСЫ","913","0100","0000000000","000",2048600,820568.74,40.055098115786393]
["Обеспечение деятельности финансовых, налоговых и таможенных органов и органов финансового (финансово-бюджетного) надзора","913","0106","0000000000","000",2048600,820568.74,40.055098115786393]
["Непрограммные направления  расходов","913","0106","7000000000","000",2048600,820568.74,40.055098115786393]
["Обеспечение деятельности муниципальных органов (центральный аппарат)","913","0106","7000121000","000",1223796,489845.14,40.026698894260157]
["Расходы на выплаты персоналу государственных (муниципальных) органов","913","0106","7000121000","120",1143891,432403.14,37.801078948955805]
["Иные закупки товаров, работ и услуг для обеспечения государственных (муниципальных) нужд","913","0106","7000121000","240",79905,57442,71.887866841874725]
["Руководитель контроль-счетной палаты Муниципального образования","913","0106","7000321000","000",824804,330723.59999999998,40.097235221943635]
["Расходы на выплаты персоналу государственных (муниципальных) органов","913","0106","7000321000","120",824804,330723.59999999998,40.097235221943635]
["СРЕДСТВА МАССОВОЙ ИНФОРМАЦИИ","913","1200","0000000000","000",7200,1509.3,20.962500000000002]
["Другие вопросы в области средств массовой информации","913","1204","0000000000","000",7200,1509.3,20.962500000000002]
["Непрограммные направления  расходов","913","1204","7000000000","000",7200,1509.3,20.962500000000002]
["Обнародование (официальное опубликование) правовых актов органов муниципальной власти МО Красноуфимский округ и иной официальной информации.","913","1204","7000621000","000",7200,1509.3,{"$f":"G584/F584*100","v":20.962500000000002}]
["Иные закупки товаров, работ и услуг для обеспечения государственных (муниципальных) нужд","913","1204","7000621000","240",7200,1509.3,20.962500000000002]
["Финансовый отдел  администрации Муниципального образования \nКрасноуфимский округ","919","0000","0000000000","000",7465900,3097749.49,41.491976720824013]
["ОБЩЕГОСУДАРСТВЕННЫЕ ВОПРОСЫ","919","0100","0000000000","000",7270900,3041397.03,41.829718879368436]
["Обеспечение деятельности финансовых, налоговых и таможенных органов и органов финансового (финансово-бюджетного) надзора","919","0106","0000000000","000",7270900,3041397.03,41.829718879368436]
["Муниципальная программа МО Красноуфимский округ \"Управление  муниципальными  финансами МО  Красноуфимский  округ до 2020 года\"","919","0106","1000000000","000",7270900,3041397.03,41.829718879368436]
["Подпрограмма \"Обеспечение реализации муниципальной программы \"Управление муниципальными финансами МО Красноуфимский округ\"","919","0106","1030000000","000",7270900,3041397.03,41.829718879368436]
["Обеспечение деятельности финансовых органов (центральный аппарат)","919","0106","1030121000","000",7103460,3041397.03,42.815712765328442]
["Расходы на выплаты персоналу государственных (муниципальных) органов","919","0106","1030121000","120",5627020,2742606.03,48.739937480229315]
["Иные закупки товаров, работ и услуг для обеспечения государственных (муниципальных) нужд","919","0106","1030121000","240",1475840,298791,20.245487315698181]
["Уплата налогов, сборов и иных платежей","919","0106","1030121000","850",600,0,0]
["Обеспечение деятельности финансовых органов (прочий персонал)","919","0106","103П121000","000",167440,0,0]
["Расходы на выплаты персоналу государственных (муниципальных) органов","919","0106","103П121000","120",167440,0,0]
["СОЦИАЛЬНАЯ ПОЛИТИКА","919","1000","0000000000","000",193000,55952.99,28.991186528497408]
["Пенсионное обеспечение","919","1001","0000000000","000",193000,55952.99,28.991186528497408]
["Непрограммные направления  расходов","919","1001","7000000000","000",193000,55952.99,28.991186528497408]
["Доплаты к пенсиям муниципальных служащих","919","1001","7000029000","000",193000,55952.99,28.991186528497408]
["Публичные нормативные социальные выплаты гражданам","919","1001","7000029000","310",193000,55952.99,28.991186528497408]
["ОБСЛУЖИВАНИЕ ГОСУДАРСТВЕННОГО И МУНИЦИПАЛЬНОГО ДОЛГА","919","1300","0000000000","000",2000,399.47,19.973500000000001]
["Обслуживание государственного внутреннего и муниципального долга","919","1301","0000000000","000",2000,399.47,19.973500000000001]
["Муниципальная программа МО Красноуфимский округ \"Управление  муниципальными  финансами МО  Красноуфимский  округ до 2020 года\"","919","1301","1000000000","000",2000,399.47,19.973500000000001]
["Подпрограмма \"Управление муниципальным долгом\"","919","1301","1020000000","000",2000,399.47,19.973500000000001]
["Процентные платежи по муниципальному долгу","919","1301","1020121000","000",2000,399.47,19.973500000000001]
["Обслуживание муниципального долга","919","1301","1020121000","730",2000,399.47,19.973500000000001]
["Всего расходов:   ",null,null,null,null,1208683306.95,545832208.14999998,45.159241052758212]